fUST/lending_fUST_20260107
["ID","MTS","AMOUNT","RATE_DAILY","PERIOD"]
[400703956,1767785440572,-1000.0,0.00013821,2]
[400703957,1767785440581,-1000.0,0.00013821,2]
[400703960,1767785440591,-1000.0,0.00013821,2]
[400703962,1767785440599,-10000.0,0.0001386,2]
[400703964,1767785440609,-600.0,0.00014221,2]
[400703966,1767785440618,-502.70184396,0.00014247,2]
[400703967,1767785440628,-1000.0,0.00014247,2]
[400703970,1767785440637,-1000.0,0.00014247,2]
[400703972,1767785440647,-1000.0,0.00014247,2]
[400703974,1767785440658,-1000.0,0.00014247,2]
[400703976,1767785440667,-1000.0,0.00014247,2]
[400703978,1767785440676,-286.46302345,0.00014327,2]
[400703980,1767785440685,-1500.0,0.00014368,2]
[400703982,1767785440695,-1500.0,0.00014368,2]
[400703984,1767785440704,-1500.0,0.00014368,2]
[400703986,1767785440713,-900.0,0.00014768,2]
[400703988,1767785440722,-1002.73058689,0.00014795,2]
[400703990,1767785440732,-636.08782837,0.00014795,2]
[400703992,1767785440741,-1500.0,0.00014795,2]
[400703994,1767785440750,-1500.0,0.00014795,2]
[400703996,1767785440759,-1500.0,0.00014795,2]
[400703998,1767785440768,-100000.0,0.00014882,2]
[400704000,1767785440777,-594.48760347,0.000149,2]
[400704002,1767785440786,-2000.0,0.00014916,2]
[400704004,1767785440795,-2000.0,0.00014916,2]
[400704006,1767785440804,-2000.0,0.00014916,2]
[400704008,1767785440813,-587.0,0.00014918,2]
[400704010,1767785440822,-1000.0,0.00015,2]
[400704012,1767785440835,-1018.09986707,0.00015,2]
[400704014,1767785440844,-31548.41630509,0.00015,2]
[400704016,1767785440853,-150.8752938,0.00015,2]
[400704018,1767785440863,-502.26303891,0.00015,2]
[400704020,1767785440873,-999.999999,0.00015,2]
[400704022,1767785440882,-720.0,0.00015022,2]
[400704024,1767785440891,-800.0,0.00015068,2]
[400704026,1767785440901,-1000.0,0.000153,2]
[400704027,1767785440910,-1200.0,0.00015316,2]
[400704030,1767785440920,-2000.0,0.00015342,2]
[400704032,1767785440930,-2000.0,0.00015342,2]
[400704034,1767785440938,-2000.0,0.00015342,2]
[400704036,1767785440947,-2500.0,0.00015464,2]
[400704038,1767785440957,-2500.0,0.00015464,2]
[400704055,1767785441107,-2500.0,0.00015464,2]
[400704057,1767785441117,-1203.39831266,0.00015864,2]
[400704059,1767785441126,-2500.0,0.0001589,2]
[400704061,1767785441136,-2500.0,0.0001589,2]
[400704063,1767785441145,-2500.0,0.0001589,2]
[400704065,1767785441154,-7858.0,0.00015939,2]
[400704067,1767785441163,-5000.0,0.00016,2]
[400704069,1767785441172,-215.68492171,0.00016,2]
[400704071,1767785441181,-2774.29394276,0.00016012,2]
[400704073,1767785441191,-3000.0,0.00016012,2]
[400704075,1767785441200,-3000.0,0.00016012,2]
[400704077,1767785441209,-1600.0,0.00016164,2]
[400704079,1767785441218,-330.16077279,0.00016327,2]
[400704081,1767785441227,-823.0,0.0001637,2]
[400704083,1767785441236,-3000.0,0.00016438,2]
[400704085,1767785441245,-3000.0,0.00016438,2]
[400704087,1767785441254,-3000.0,0.00016438,2]
[400704089,1767785441264,-864.0,0.00016524,2]
[400704091,1767785441273,-3500.0,0.0001656,2]
[400704093,1767785441282,-1627.52709265,0.0001656,2]
[400704095,1767785441291,-53819.04156786,0.00016778,2]
[400704097,1767785441300,-3193.6491687,0.00016871,2]
[400704099,1767785441308,-3500.0,0.00016986,2]
[400704101,1767785441318,-3500.0,0.00016986,2]
[400704103,1767785441326,-3500.0,0.00016986,2]
[400704105,1767785441336,-5000.0,0.00017,2]
[400704107,1767785441346,-4000.0,0.00017108,2]
[400704109,1767785441355,-2400.0,0.0001726,2]
[400704111,1767785441364,-4000.0,0.00017534,2]
[400704113,1767785441373,-4000.0,0.00017534,2]
[400704115,1767785441382,-4000.0,0.00017534,2]
[400704117,1767785441391,-4500.0,0.00017656,2]
[400704119,1767785441400,-1152.0,0.00017964,2]
[400704121,1767785441408,-950.0,0.00018,2]
[400704123,1767785441419,-5000.0,0.00018,2]
[400704124,1767785441428,-27429.36672841,0.00018,2]
[400704126,1767785441437,-882.05613913,0.00018082,2]
[400704128,1767785441446,-4500.0,0.00018082,2]
[400704130,1767785441455,-4500.0,0.00018082,2]
[400704132,1767785441464,-1000.0,0.00018176,2]
[400704134,1767785441473,-5000.0,0.00018204,2]
[400704136,1767785441482,-373.85852213,0.00018327,2]
[400704138,1767785441491,-802.30074464,0.00018356,2]
[400704140,1767785441501,-5000.0,0.0001863,2]
[400704142,1767785441510,-838.56279606,0.0001863,2]
[400704144,1767785441518,-5331.75246461,0.00018752,2]
[400704146,1767785441527,-1434.94128664,0.00019,2]
[400704148,1767785441536,-2603.49,0.00019,2]
[400704150,1767785441546,-17949.00191859,0.00019,2]
[400704152,1767785441555,-7000.62506532,0.00019,2]
[400704154,1767785441564,-352.8926,0.00019178,2]
[400704156,1767785441572,-352.8926,0.00019178,3]
[400704158,1767785441583,-352.8926,0.00019178,5]
[400704160,1767785441591,-352.8926,0.00019178,2]
[400704162,1767785441600,-352.8926,0.00019178,3]
[400704164,1767785441609,-352.8926,0.00019178,5]
[400704166,1767785441619,-352.8926,0.00019178,2]
[400704168,1767785441627,-900.0,0.00019178,2]
[400704170,1767785441637,-5011.36258874,0.00019178,2]
[400704172,1767785441647,-2302.28,0.000192,2]
[400704174,1767785441655,-227.46,0.000192,2]
[400704176,1767785441664,-208.07,0.000192,2]
[400704178,1767785441673,-25963.54,0.000192,2]
[400704180,1767785441682,-167.78,0.000192,2]
[400704182,1767785441691,-497.81118302,0.00019205,5]
[400704184,1767785441700,-14624.50772426,0.00019344,3]
[400704186,1767785441710,-7197.77059837,0.00019612,2]
[400704188,1767785441719,-301464.637223,0.00019644,2]
[400704190,1767785441728,-862.0,0.00019712,2]
[400704192,1767785441738,-1549.57669197,0.00019726,2]
[400704194,1767785441747,-1000.0,0.00019994,2]
[400704196,1767785441756,-244.0,0.00019994,2]
[400704197,1767785441764,-1972.0,0.0002,2]
[400704199,1767785441774,-10000.0,0.0002,2]
[400704201,1767785441783,-181.25348447,0.0002,2]
[400704203,1767785441792,-632.73035631,0.0002,2]
[400704205,1767785441802,-14686.18217338,0.0002,2]
[400704207,1767785441811,-371.23034443,0.0002,2]
[400704209,1767785441820,-599.02649061,0.0002,2]
[400704211,1767785441831,-696.84890501,0.0002,2]
[400704213,1767785441840,-23000.0,0.0002,2]
[400704215,1767785441849,-202.52017028,0.0002,2]
[400704217,1767785441859,-503.77278596,0.0002,2]
[400704219,1767785441868,-159.84863644,0.0002,2]
[400704221,1767785441878,-1041.66666667,0.00020069,2]
[400704223,1767785441889,-459.50208546,0.0002013,2]
[400704225,1767785441898,-255.0,0.00020192,3]
[400704227,1767785441908,-3193.6491687,0.00020247,2]
[400704229,1767785441918,-417.55627147,0.00020327,2]
[400704231,1767785441927,-307.6,0.0002043,2]
[400704233,1767785441936,-1387.87898167,0.0002061,2]
[400704235,1767785441946,-256.20863618,0.000209,2]
[400704237,1767785441955,-277.06974618,0.00021,2]
[400704239,1767785441964,-1081.32871409,0.00021,10]
[400704241,1767785441973,-50000.0,0.00021,2]
[400704242,1767785441982,-182.25330539,0.000215,2]
[400704244,1767785441992,-1038.80075693,0.000215,2]
[400704246,1767785442001,-12849.42882741,0.000215,2]
[400704248,1767785442010,-7197.7705983,0.00021574,2]
[400704250,1767785442019,-568.10876052,0.0002196,10]
[400704252,1767785442028,-307.6,0.00021978,2]
[400704254,1767785442037,-1000.0,0.00021993,10]
[400704256,1767785442046,-492.0,0.00021993,10]
[400704258,1767785442055,-451.53,0.00022,2]
[400704260,1767785442064,-1646.0,0.00022,7]
[400704262,1767785442073,-10000.0,0.00022,2]
[400704264,1767785442084,-90000.0,0.00022,2]
[400704266,1767785442093,-171.84386487,0.00022,10]
[400704268,1767785442102,-94723.72893292,0.00022,7]
[400704270,1767785442111,-828.88420571,0.00022,20]
[400704272,1767785442120,-33706.85557129,0.00022,2]
[400704274,1767785442129,-634.815792,0.00022,2]
[400704276,1767785442138,-634.815792,0.00022,2]
[400704278,1767785442147,-634.815792,0.00022,2]
[400704280,1767785442156,-634.815792,0.00022,2]
[400704282,1767785442165,-151.0,0.00022,2]
[400704284,1767785442175,-151.0,0.00022,2]
[400704286,1767785442184,-461.25402081,0.00022327,2]
[400704288,1767785442194,-169.0,0.00022384,7]
[400704290,1767785442203,-300.0,0.00022466,2]
[400704291,1767785442211,-1032.71087693,0.000225,2]
[400704293,1767785442220,-1041.66666667,0.00023,3]
[400704295,1767785442229,-450.0,0.00023014,2]
[400704297,1767785442239,-837.3452632,0.00023266,2]
[400704299,1767785442260,-67876.1943405,0.00023266,2]
[400704301,1767785442269,-307.6,0.00023526,2]
[400704303,1767785442278,-7197.7705983,0.00023536,2]
[400704305,1767785442287,-600.0,0.00023562,2]
[400704307,1767785442296,-3193.6491687,0.00023623,2]
[400704309,1767785442308,-14624.46,0.000237,3]
[400704311,1767785442326,-2100.0,0.00023736,2]
[400704313,1767785442336,-2100.0,0.00023819,2]
[400704315,1767785442350,-500.0,0.00023839,2]
[400704317,1767785442366,-500.0,0.00023923,2]
[400704319,1767785442375,-500.0,0.00023958,2]
[400704321,1767785442385,-23906.54289923,0.00024,2]
[400704322,1767785442394,-245.28508092,0.00024,60]
[400704324,1767785442403,-1734.693215,0.00024,2]
[400704326,1767785442412,-465.43647205,0.00024,2]
[400704328,1767785442421,-618.86,0.00024,14]
[400704330,1767785442431,-1041.66666667,0.00024,7]
[400704332,1767785442439,-14624.46,0.000241,3]
[400704334,1767785442449,-750.0,0.0002411,2]
[400704336,1767785442458,-504346.20009652,0.00024142,2]
[400704338,1767785442467,-634.815792,0.00024142,2]
[400704340,1767785442476,-634.815792,0.00024142,2]
[400704342,1767785442485,-634.815792,0.00024142,2]
[400704344,1767785442494,-634.815792,0.00024142,2]
[400704346,1767785442503,-151.0,0.00024142,2]
[400704348,1767785442512,-151.0,0.00024142,2]
[400704350,1767785442521,-1000.0,0.00024193,10]
[400704352,1767785442530,-791.0,0.00024193,10]
[400704355,1767785442540,-208.07,0.000242,7]
[400704357,1767785442549,-25963.54,0.000242,2]
[400704359,1767785442558,-50247.50322628,0.000242,2]
[400704360,1767785442567,-504.95177015,0.00024327,2]
[400704362,1767785442576,-2100.0,0.00024365,2]
[400704364,1767785442586,-2100.0,0.00024428,2]
[400704367,1767785442595,-500.0,0.00024453,2]
[400704370,1767785442604,-2000.0,0.00024568,7]
[400704372,1767785442614,-172.0,0.00024575,13]
[400704374,1767785442623,-14624.46,0.000246,3]
[400704376,1767785442633,-1041.66666667,0.000246,3]
[400704378,1767785442642,-513.79712507,0.0002465,2]
[400704380,1767785442651,-156724.58563049,0.0002465,2]
[400704382,1767785442660,-900.0,0.00024658,2]
[400704384,1767785442669,-200.0,0.00024658,2]
[400704386,1767785442678,-2302.28,0.000247,14]
[400704388,1767785442687,-227.46,0.000247,7]
[400704390,1767785442696,-1148.14949882,0.000247,13]
[400704392,1767785442706,-500.0,0.00024712,2]
[400704394,1767785442715,-2436.31932343,0.0002477,2]
[400704396,1767785442724,-16821.80898001,0.00024774,2]
[400704398,1767785442734,-151.0,0.000249,7]
[400704400,1767785442744,-151.0,0.000249,7]
[400704402,1767785442753,-151.0,0.000249,7]
[400704404,1767785442762,-151.0,0.000249,7]
[400704406,1767785442771,-276.176938,0.000249,7]
[400704408,1767785442781,-151.0,0.000249,7]
[400704410,1767785442790,-151.0,0.000249,7]
[400704412,1767785442799,-298.315005,0.000249,7]
[400704414,1767785442808,-298.315005,0.000249,7]
[400704416,1767785442818,-298.315005,0.000249,7]
[400704418,1767785442830,-298.315005,0.000249,7]
[400704420,1767785442839,-225.672265,0.000249,7]
[400704422,1767785442849,-225.672265,0.000249,7]
[400704424,1767785442858,-225.672265,0.000249,7]
[400704426,1767785442868,-225.672265,0.000249,7]
[400704428,1767785442877,-151.0,0.000249,7]
[400704430,1767785442886,-151.0,0.000249,7]
[400704431,1767785442896,-247.352857,0.000249,7]
[400704433,1767785442907,-247.352857,0.000249,7]
[400704435,1767785442916,-247.352857,0.000249,7]
[400704437,1767785442924,-247.352857,0.000249,7]
[400704439,1767785442934,-151.0,0.000249,7]
[400704441,1767785442943,-618655.024558,0.000249,2]
[400704442,1767785442952,-1041.66666667,0.000249,7]
[400704444,1767785442961,-634.815792,0.000249,7]
[400704446,1767785442970,-634.815792,0.000249,7]
[400704448,1767785442979,-634.815792,0.000249,7]
[400704450,1767785442988,-634.815792,0.000249,7]
[400704452,1767785442997,-151.0,0.000249,7]
[400704454,1767785443008,-164.004799,0.000249,7]
[400704456,1767785443017,-500.0,0.00024915,2]
[400704458,1767785443026,-280.28268334,0.00024949,2]
[400704460,1767785443035,-500.0,0.00024949,2]
[400704462,1767785443044,-2436.31932343,0.00024971,2]
[400704464,1767785443053,-500.0,0.00024999,2]
[400704466,1767785443063,-10000.0,0.00025,2]
[400704468,1767785443071,-2660.39322093,0.00025,2]
[400704470,1767785443080,-2673.38990505,0.00025,2]
[400704472,1767785443089,-10364.0,0.00025,2]
[400704474,1767785443098,-500.0,0.00025,2]
[400704476,1767785443108,-300.0,0.00025,30]
[400704478,1767785443117,-1363.86254436,0.00025,2]
[400704480,1767785443126,-759.01355597,0.00025,2]
[400704482,1767785443134,-307.6,0.00025073,2]
[400704484,1767785443143,-1646.0,0.000251,7]
[400704485,1767785443152,-283.8,0.000251,2]
[400704487,1767785443162,-579.85119945,0.000252,5]
[400704489,1767785443171,-250.0,0.00025205,2]
[400704491,1767785443180,-1181.07580657,0.00025205,2]
[400704493,1767785443189,-451.53,0.000253,2]
[400704495,1767785443198,-2000.0,0.00025339,7]
[400704497,1767785443210,-2100.0,0.00025357,7]
[400704499,1767785443219,-2436.31932343,0.00025411,2]
[400704501,1767785443228,-900.0,0.00025469,3]
[400704503,1767785443237,-2100.0,0.00025472,7]
[400704505,1767785443246,-7197.7705983,0.00025498,2]
[400704507,1767785443256,-1000.0,0.000255,2]
[400704509,1767785443268,-2436.31932343,0.00025521,2]
[400704512,1767785443278,-2100.0,0.00025536,7]
[400704514,1767785443287,-500.0,0.0002555,7]
[400704515,1767785443296,-837.3452632,0.00025598,2]
[400704517,1767785443305,-2100.0,0.00025698,7]
[400704520,1767785443315,-2100.0,0.00025746,7]
[400704521,1767785443325,-350.0,0.00025753,2]
[400704524,1767785443334,-500.0,0.00025818,7]
[400704526,1767785443345,-191.37491647,0.00025877,15]
[400704528,1767785443354,-2436.31932343,0.00025893,2]
[400704531,1767785443364,-2100.0,0.0002594,7]
[400704533,1767785443373,-2030.296672,0.00025979,2]
[400704536,1767785443382,-30000.0,0.00025979,2]
[400704539,1767785443394,-17467.00445744,0.00026,2]
[400704541,1767785443403,-161.0,0.00026,5]
[400704543,1767785443414,-160.185086,0.00026027,7]
[400704545,1767785443424,-300.0,0.00026027,7]
[400704547,1767785443434,-300.0,0.00026027,7]
[400704549,1767785443444,-300.0,0.00026027,7]
[400704551,1767785443453,-300.0,0.00026027,7]
[400704554,1767785443463,-151.0,0.00026027,7]
[400704555,1767785443473,-193.081788,0.00026027,7]
[400704558,1767785443483,-151.0,0.00026027,7]
[400704560,1767785443493,-151.0,0.00026027,7]
[400704561,1767785443502,-151.0,0.00026027,7]
[400704563,1767785443511,-151.0,0.00026027,7]
[400704565,1767785443520,-151.0,0.00026027,7]
[400704567,1767785443530,-151.0,0.00026027,7]
[400704569,1767785443539,-151.0,0.00026027,7]
[400704571,1767785443549,-151.0,0.00026027,7]
[400704573,1767785443558,-151.0,0.00026027,7]
[400704575,1767785443567,-151.0,0.00026027,7]
[400704577,1767785443576,-151.0,0.00026027,7]
[400704579,1767785443586,-200.0,0.00026027,7]
[400704581,1767785443595,-200.0,0.00026027,7]
[400704583,1767785443604,-200.0,0.00026027,7]
[400704585,1767785443614,-200.0,0.00026027,7]
[400704587,1767785443624,-151.0,0.00026027,7]
[400704589,1767785443633,-151.0,0.00026027,7]
[400704591,1767785443642,-151.0,0.00026027,7]
[400704593,1767785443651,-181.252366,0.00026027,7]
[400704595,1767785443660,-151.0,0.00026027,7]
[400704597,1767785443669,-206.889733,0.00026027,7]
[400704599,1767785443678,-151.0,0.00026027,7]
[400704601,1767785443687,-151.0,0.00026027,7]
[400704603,1767785443696,-151.0,0.00026027,7]
[400704605,1767785443705,-151.0,0.00026027,7]
[400704607,1767785443715,-151.0,0.00026027,7]
[400704609,1767785443724,-1626.684503,0.00026027,7]
[400704611,1767785443734,-1626.684503,0.00026027,7]
[400704613,1767785443742,-1626.684503,0.00026027,7]
[400704615,1767785443752,-1626.684503,0.00026027,7]
[400704617,1767785443761,-151.0,0.00026027,7]
[400704619,1767785443770,-151.0,0.00026027,7]
[400704621,1767785443779,-151.0,0.00026027,7]
[400704623,1767785443788,-151.0,0.00026027,7]
[400704625,1767785443797,-234.643774,0.00026027,7]
[400704627,1767785443806,-289.726143,0.00026027,7]
[400704629,1767785443816,-151.0,0.00026027,7]
[400704631,1767785443826,-214.456704,0.00026027,7]
[400704633,1767785443837,-214.456704,0.00026027,7]
[400704635,1767785443846,-214.456704,0.00026027,7]
[400704637,1767785443855,-155.076774,0.00026027,7]
[400704638,1767785443864,-214.456704,0.00026027,7]
[400704640,1767785443874,-151.0,0.00026027,7]
[400704643,1767785443884,-194.927323,0.00026027,7]
[400704644,1767785443893,-151.0,0.00026027,7]
[400704646,1767785443903,-194.927323,0.00026027,7]
[400704648,1767785443913,-194.927323,0.00026027,7]
[400704650,1767785443923,-194.927323,0.00026027,7]
[400704652,1767785443932,-200.632316,0.00026027,7]
[400704654,1767785443942,-200.632316,0.00026027,7]
[400704656,1767785443951,-200.632316,0.00026027,7]
[400704658,1767785443961,-200.632316,0.00026027,7]
[400704660,1767785443969,-151.0,0.00026027,7]
[400704662,1767785443979,-151.0,0.00026027,7]
[400704666,1767785444116,-189.060693,0.00026027,7]
[400704667,1767785444126,-151.0,0.00026027,7]
[400704668,1767785444135,-151.0,0.00026027,7]
[400704669,1767785444144,-151.0,0.00026027,7]
[400704670,1767785444153,-151.0,0.00026027,7]
[400704671,1767785444162,-209.524359,0.00026027,7]
[400704672,1767785444171,-209.524359,0.00026027,7]
[400704673,1767785444180,-209.524359,0.00026027,7]
[400704674,1767785444189,-209.524359,0.00026027,7]
[400704675,1767785444198,-530.111159,0.00026027,7]
[400704676,1767785444207,-241.004676,0.00026027,7]
[400704677,1767785444216,-530.111159,0.00026027,7]
[400704678,1767785444225,-241.004676,0.00026027,7]
[400704679,1767785444235,-530.111159,0.00026027,7]
[400704680,1767785444245,-241.004676,0.00026027,7]
[400704681,1767785444254,-530.111159,0.00026027,7]
[400704682,1767785444263,-241.004676,0.00026027,7]
[400704683,1767785444272,-151.0,0.00026027,7]
[400704684,1767785444282,-151.0,0.00026027,7]
[400704685,1767785444292,-218.702509,0.00026027,7]
[400704687,1767785444301,-218.702509,0.00026027,7]
[400704688,1767785444310,-218.702509,0.00026027,7]
[400704690,1767785444319,-218.702509,0.00026027,7]
[400704692,1767785444329,-184.812283,0.00026027,7]
[400704694,1767785444339,-184.812283,0.00026027,7]
[400704696,1767785444348,-184.812283,0.00026027,7]
[400704698,1767785444358,-184.812283,0.00026027,7]
[400704700,1767785444367,-151.0,0.00026027,7]
[400704702,1767785444376,-151.0,0.00026027,7]
[400704704,1767785444385,-151.0,0.00026027,7]
[400704706,1767785444394,-151.0,0.00026027,7]
[400704708,1767785444403,-186.329815,0.00026027,7]
[400704710,1767785444412,-186.329815,0.00026027,7]
[400704712,1767785444422,-186.329815,0.00026027,7]
[400704714,1767785444432,-186.329815,0.00026027,7]
[400704716,1767785444441,-151.0,0.00026027,7]
[400704718,1767785444450,-151.0,0.00026027,7]
[400704720,1767785444459,-151.0,0.00026027,7]
[400704722,1767785444468,-151.0,0.00026027,7]
[400704724,1767785444477,-205.742012,0.00026027,7]
[400704726,1767785444487,-205.742012,0.00026027,7]
[400704728,1767785444496,-151.0,0.00026027,7]
[400704730,1767785444505,-205.742012,0.00026027,7]
[400704732,1767785444515,-151.0,0.00026027,7]
[400704734,1767785444525,-151.0,0.00026027,7]
[400704736,1767785444534,-205.742012,0.00026027,7]
[400704738,1767785444543,-151.0,0.00026027,7]
[400704740,1767785444552,-151.0,0.00026027,7]
[400704742,1767785444561,-1584.454906,0.00026027,7]
[400704744,1767785444570,-151.0,0.00026027,7]
[400704746,1767785444579,-1584.454906,0.00026027,7]
[400704748,1767785444588,-151.0,0.00026027,7]
[400704750,1767785444597,-1584.454906,0.00026027,7]
[400704752,1767785444607,-151.0,0.00026027,7]
[400704754,1767785444616,-164.70126,0.00026027,7]
[400704756,1767785444625,-151.0,0.00026027,7]
[400704757,1767785444635,-187.815389,0.00026027,7]
[400704759,1767785444645,-187.815389,0.00026027,7]
[400704762,1767785444655,-187.815389,0.00026027,7]
[400704764,1767785444664,-187.815389,0.00026027,7]
[400704766,1767785444674,-151.0,0.00026027,7]
[400704768,1767785444682,-187.815389,0.00026027,7]
[400704769,1767785444691,-187.815389,0.00026027,7]
[400704771,1767785444700,-187.815389,0.00026027,7]
[400704774,1767785444710,-187.815389,0.00026027,7]
[400704775,1767785444720,-187.815389,0.00026027,7]
[400704778,1767785444730,-187.815389,0.00026027,7]
[400704779,1767785444740,-187.815389,0.00026027,7]
[400704781,1767785444749,-187.815389,0.00026027,7]
[400704783,1767785444758,-151.0,0.00026027,7]
[400704785,1767785444768,-151.0,0.00026027,7]
[400704787,1767785444777,-151.0,0.00026027,7]
[400704789,1767785444786,-151.0,0.00026027,7]
[400704791,1767785444796,-151.0,0.00026027,7]
[400704793,1767785444805,-151.0,0.00026027,7]
[400704795,1767785444814,-209.486994,0.00026027,7]
[400704797,1767785444825,-183.522133,0.00026027,7]
[400704799,1767785444837,-151.0,0.00026027,7]
[400704801,1767785444845,-226.840481,0.00026027,7]
[400704803,1767785444856,-412.629762,0.00026027,7]
[400704805,1767785444866,-412.629762,0.00026027,7]
[400704807,1767785444876,-412.629762,0.00026027,7]
[400704809,1767785444886,-412.629762,0.00026027,7]
[400704811,1767785444895,-412.629762,0.00026027,7]
[400704813,1767785444907,-412.629762,0.00026027,7]
[400704815,1767785444917,-412.629762,0.00026027,7]
[400704817,1767785444927,-412.629762,0.00026027,7]
[400704820,1767785444937,-412.629762,0.00026027,7]
[400704822,1767785444947,-412.629762,0.00026027,7]
[400704823,1767785444957,-412.629762,0.00026027,7]
[400704825,1767785444966,-412.629762,0.00026027,7]
[400704828,1767785444976,-151.0,0.00026027,7]
[400704830,1767785444985,-151.0,0.00026027,7]
[400704832,1767785444994,-151.0,0.00026027,7]
[400704833,1767785445004,-151.0,0.00026027,7]
[400704836,1767785445013,-151.0,0.00026027,7]
[400704837,1767785445022,-151.0,0.00026027,7]
[400704839,1767785445032,-151.0,0.00026027,7]
[400704841,1767785445042,-151.0,0.00026027,7]
[400704843,1767785445051,-151.0,0.00026027,7]
[400704845,1767785445061,-151.0,0.00026027,7]
[400704847,1767785445070,-151.0,0.00026027,7]
[400704849,1767785445080,-151.0,0.00026027,7]
[400704851,1767785445089,-193.751702,0.00026027,7]
[400704853,1767785445098,-151.0,0.00026027,7]
[400704855,1767785445108,-151.0,0.00026027,7]
[400704858,1767785445118,-217.09525,0.00026027,7]
[400704860,1767785445127,-2105.41764886,0.00026034,2]
[400704862,1767785445137,-2183.31810187,0.00026089,2]
[400704864,1767785445146,-2000.0,0.00026111,7]
[400704866,1767785445156,-2264.10087164,0.00026144,2]
[400704868,1767785445165,-2436.31932343,0.00026149,2]
[400704870,1767785445175,-2100.0,0.00026153,7]
[400704871,1767785445184,-194.56620473,0.0002616,2]
[400704873,1767785445193,-2347.87260389,0.00026199,2]
[400704876,1767785445204,-2434.74389024,0.00026254,2]
[400704877,1767785445215,-208.07,0.000263,7]
[400704879,1767785445224,-25963.54,0.000263,2]
[400704881,1767785445234,-450.0,0.00026301,2]
[400704883,1767785445243,-2524.82941417,0.00026309,2]
[400704885,1767785445252,-548.64951949,0.00026327,2]
[400704887,1767785445262,-2618.2481025,0.00026364,2]
[400704889,1767785445272,-1974.17602471,0.00026413,2]
[400704891,1767785445281,-2715.12328229,0.00026419,2]
[400704893,1767785445291,-2815.58284374,0.00026474,2]
[400704895,1767785445299,-31110.0,0.00026527,2]
[400704897,1767785445308,-2919.75940895,0.00026529,2]
[400704899,1767785445317,-200.0,0.0002654,14]
[400704901,1767785445327,-2436.31932343,0.00026553,2]
[400704903,1767785445336,-151.0,0.00026573,7]
[400704905,1767785445347,-151.0,0.00026573,7]
[400704907,1767785445356,-390.92977,0.00026573,7]
[400704909,1767785445366,-390.92977,0.00026573,7]
[400704911,1767785445376,-151.0,0.00026573,7]
[400704914,1767785445385,-207.061221,0.00026573,7]
[400704915,1767785445395,-151.0,0.00026573,2]
[400704917,1767785445404,-390.92977,0.00026573,7]
[400704919,1767785445413,-390.92977,0.00026573,7]
[400704921,1767785445422,-612.995739,0.00026573,7]
[400704923,1767785445431,-612.995739,0.00026573,7]
[400704925,1767785445440,-612.995739,0.00026573,7]
[400704927,1767785445449,-612.995739,0.00026573,7]
[400704929,1767785445458,-232.576988,0.00026573,7]
[400704931,1767785445468,-1016.281206,0.00026573,7]
[400704933,1767785445477,-1016.281206,0.00026573,7]
[400704935,1767785445486,-1016.281206,0.00026573,7]
[400704937,1767785445495,-1016.281206,0.00026573,7]
[400704939,1767785445505,-215.570059,0.00026573,7]
[400704941,1767785445515,-206.665209,0.00026573,7]
[400704943,1767785445525,-215.570059,0.00026573,7]
[400704945,1767785445534,-206.665209,0.00026573,7]
[400704947,1767785445543,-215.570059,0.00026573,7]